[Event "26th Abu Dhabi Master 2019"]
[Site "Abu Dhabi"]
[Date "2019.08.03"]
[Round "3.56"]
[White "Moksh Amit Doshi"]
[Black "Salem, Ghuloom"]
[Result "1-0"]
[ECO "A40"]
[WhiteElo "2229"]
[BlackElo "2205"]
[Annotator "NA"]
[PlyCount "87"]
[EventDate "2019.08.02"]
[EventType "swiss"]
[EventCountry "UAE"]
[SourceTitle "playchess.com"]
[Source "ChessBase"]
[SourceQuality "1"]
[TimeControl "5400+30"]

1. d4 c6 2. c4 d6 3. Nf3 Bg4 4. e4 Qc7 5. h3 Bh5 6. Nc3 Nd7 7. Be2 Ngf6 8. O-O e5 9. Be3 Be7 10. d5 Bg6 11. Nd2 O-O 12. b4 a5 13. a3 Ne8 14. Qb3 f5 15. exf5 Bxf5 16. c5 Kh8 17. Nde4 a4 18. Qa2 Bxe4 19. Nxe4 cxd5 20. Qxd5 Nef6 21. cxd6 Nxd5 22. dxc7 Nxc7 23. Rfd1 Rfd8 24. Rac1 Ne6 25. Rxd7 Rxd7 26. Bg4 Nd4 27. Bxd7 Ne2+ 28. Kf1 Nxc1 29. Bxc1 Kg8 30. Bb2 Kf7 31. Bxe5 Bf8 32. Nc3 Ke7 33. Bxa4 b5 34. Bxb5 Rxa3 35. Bc4 Kd7 36. b5 g5 37. Ke2 h6 38. Kd3 Bb4 39. Bd5 Bc5 40. Bd4 Kd6 41. Kc4 Bxd4 42. Kxd4 Ra1 43. b6 Rf1 44. Nb5+ {Kxd5+ Ke4+} 1-0

[Event "26th Abu Dhabi Master 2019"]
[Site "Abu Dhabi"]
[Date "2019.08.03"]
[Round "3.57"]
[White "Al Hosani, Omran"]
[Black "Zhang, Xiaowen"]
[Result "0-1"]
[ECO "D53"]
[WhiteElo "2135"]
[BlackElo "2318"]
[Annotator "NA"]
[PlyCount "84"]
[EventDate "2019.08.02"]
[EventType "swiss"]
[EventCountry "UAE"]
[SourceTitle "playchess.com"]
[Source "ChessBase"]
[SourceQuality "1"]
[TimeControl "5400+30"]

1. d4 {[%emt 0:01:13]} Nf6 {[%emt 0:01:14]} 2. c4 {[%emt 0:04:46]} e6 {[%emt 0:01:12]} 3. Nc3 {[%emt 0:00:38]} d5 {[%emt 0:00:09]} 4. Bg5 {[%emt 0:03:35]} Be7 {[%emt 0:00:07]} 5. e3 {[%emt 0:00:51]} h6 {[%emt 0:00:32]} 6. Bh4 {[%emt 0:00:21]} O-O {[%emt 0:00:07]} 7. Qc2 {[%emt 0:00:27]} Nbd7 {[%emt 0:20:03]} 8. cxd5 {[%emt 0:00:47]} exd5 {[%emt 0:01:56]} 9. Bd3 {[%emt 0:00:11]} c6 {[%emt 0:00:20]} 10. Nge2 {[%emt 0:00:15]} Re8 {[%emt 0:02:05]} 11. O-O {[%emt 0:00:40]} Nh5 {[%emt 0:00:32]} 12. Bxe7 {[%emt 0:00:11]} Qxe7 {[%emt 0:00:04]} 13. Rab1 {[%emt 0:03:40]} a5 {[%emt 0:00:32]} 14. a3 {[%emt 0:01:30]} Nhf6 {[%emt 0:01:25]} 15. b4 {[%emt 0:00:17]} Nb6 {[%emt 0:05:21]} 16. b5 {[%emt 0:03:52]} c5 {[%emt 0:00:04]} 17. dxc5 {[%emt 0:01:32]} Qxc5 {[%emt 0:00:04]} 18. Qb3 {[%emt 0:13:31]} Ng4 {[%emt 0:20:42]} 19. Rbd1 {[%emt 0:20:13]} Be6 {[%emt 0:04:09]} 20. Nf4 {[%emt 0:05:27]} Qc7 {[%emt 0:10:29]} 21. g3 {[%emt 0:02:40]} Qe5 {[%emt 0:04:34]} 22. Nxe6 {[%emt 0:16:55]} fxe6 {[%emt 0:01:36]} 23. h3 {[%emt 0:03:04]} Nf6 {[%emt 0:02:54]} 24. Na4 {[%emt 0:01:20]} Nbd7 {[%emt 0:01:00]} 25. Rc1 {[%emt 0:00:42]} Rac8 {[%emt 0:06:15]} 26. Rc2 {[%emt 0:00:51]} Qh5 {[%emt 0:03:20]} 27. Kg2 {[%emt 0:00:55]} Ne5 {[%emt 0:00:16]} 28. Be2 {[%emt 0:03:02]} Qf5 {[%emt 0:00:16]} 29. Rfc1 {[%emt 0:00:37]} Ne4 {[%emt 0:03:15]} 30. f3 {[%emt 0:03:02]} Rxc2 {[%emt 0:02:47]} 31. Qxc2 {[%emt 0:00:23]} Rf8 {[%emt 0:00:57]} 32. g4 {[%emt 0:03:34]} Qf6 {[%emt 0:00:51]} 33. Qd1 {[%emt 0:01:53]} Nxf3 {[%emt 0:03:51]} 34. Bxf3 {[%emt 0:00:10]} Ng5 {[%emt 0:00:02]} 35. Bxd5 {[%emt 0:00:58]} Qf2+ {[%emt 0:01:16]} 36. Kh1 {[%emt 0:00:02]} exd5 {[%emt 0:00:04]} 37. Qxd5+ {[%emt 0:01:09]} Kh8 {[%emt 0:00:05]} 38. Qg2 {[%emt 0:00:34]} Qxe3 {[%emt 0:00:06]} 39. Rf1 {[%emt 0:00:30]} Rd8 {[%emt 0:02:38]} 40. Nb2 {[%emt 0:01:19]} Ne4 {[%emt 0:00:42]} 41. Rf3 {[%emt 0:01:51]} Qc1+ {[%emt 0:00:22]} 42. Rf1 {[%emt 0:00:25]} Ng3+ {[%emt 0:00:22]} 0-1

[Event "26th Abu Dhabi Master 2019"]
[Site "Abu Dhabi"]
[Date "2019.08.03"]
[Round "3.58"]
[White "Srijit Paul"]
[Black "Priyanka, K."]
[Result "1-0"]
[ECO "B90"]
[WhiteElo "2298"]
[BlackElo "2201"]
[Annotator "NA"]
[PlyCount "52"]
[EventDate "2019.08.02"]
[EventType "swiss"]
[EventCountry "UAE"]
[SourceTitle "playchess.com"]
[Source "ChessBase"]
[SourceQuality "1"]
[TimeControl "5400+30"]

1. e4 c5 2. Nf3 d6 {[%emt 0:00:13]} 3. d4 {[%emt 0:00:00]} cxd4 {[%emt 0:00:20]} 4. Nxd4 {[%emt 0:00:00]} Nf6 {[%emt 0:00:24]} 5. Nc3 {[%emt 0:00:06]} a6 {[%emt 0:00:55]} 6. h3 {[%emt 0:00:08]} e5 {[%emt 0:04:11]} 7. Nde2 {[%emt 0:00:06]} h5 {[%emt 0:00:21]} 8. g3 {[%emt 0:00:06]} Be6 {[%emt 0:02:10]} 9. Bg2 {[%emt 0:00:07]} Nbd7 {[%emt 0:00:34]} 10. a4 {[%emt 0:00:21]} Be7 {[%emt 0:01:10]} 11. Rf1 {[%emt 0:01:59]} Rc8 {[%emt 0:00:36]} 12. Be3 {[%emt 0:01:06]} Nb6 {[%emt 0:01:26]} 13. b3 {[%emt 0:00:48]} d5 {[%emt 0:01:43]} 14. Bxb6 {[%emt 0:02:18]} Qxb6 {[%emt 0:00:08]} 15. Nxd5 {[%emt 0:00:04]} Nxd5 {[%emt 0:01:19]} 16. exd5 {[%emt 0:00:09]} Bd7 {[%emt 0:00:59]} 17. c4 {[%emt 0:04:37]} f5 {[%emt 0:03:21]} 18. d6 {[%emt 0:01:10]} Bf6 {[%emt 0:08:59]} 19. Nc3 {[%emt 0:03:31]} e4 {[%emt 0:04:05]} 20. Nd5 {[%emt 0:00:12]} Qxd6 {[%emt 0:01:25]} 21. Nxf6+ {[%emt 0:00:17]} Qxf6 {[%emt 0:00:43]} 22. f3 {[%emt 0:00:19]} f4 {[%emt 0:21:45]} 23. fxe4 {[%emt 0:01:05]} Qb6 {[%emt 0:01:56]} 24. g4 {[%emt 0:00:00] fxg3 Qd5} Qe6 {[%emt 0:00:00] Qxb7} 25. g5 {[%emt 0:08:46] Qb4} Qe7 {[%emt 0:00:00] Qc3 Rg8 Qxg3} 26. h4 {[%emt 0:07:21] Qd3 g4 Bf3 gxh3 Qe3} Rc5 {[%emt 0:00:00] O-O-O Rg3 Qh6 Rcg5 Qxa6 Kd8 Qa8+ Kc7 Qa7+ Kc8 Bg4} 1-0

[Event "26th Abu Dhabi Master 2019"]
[Site "Abu Dhabi"]
[Date "2019.08.03"]
[Round "3.60"]
[White "Haase, Pavel"]
[Black "Bhambure, Shantanu"]
[Result "0-1"]
[ECO "A02"]
[WhiteElo "2160"]
[BlackElo "2275"]
[Annotator "NA"]
[PlyCount "96"]
[EventDate "2019.08.02"]
[EventType "swiss"]
[EventCountry "UAE"]
[SourceTitle "playchess.com"]
[Source "ChessBase"]
[SourceQuality "1"]
[TimeControl "5400+30"]

1. f4 {[%emt 0:03:39]} Nf6 {[%emt 0:00:00]} 2. Nf3 {[%emt 0:00:15]} d5 {[%emt 0:00:33]} 3. e3 {[%emt 0:00:08]} g6 {[%emt 0:00:33]} 4. b3 {[%emt 0:00:13]} Bg7 {[%emt 0:00:26]} 5. Bb2 {[%emt 0:00:06]} O-O {[%emt 0:00:14]} 6. Be2 {[%emt 0:05:36]} c5 {[%emt 0:00:48]} 7. O-O {[%emt 0:00:33]} d4 {[%emt 0:01:13]} 8. exd4 {[%emt 0:04:01]} Nd5 {[%emt 0:00:54]} 9. c3 {[%emt 0:01:49]} Nxf4 {[%emt 0:06:23]} 10. dxc5 {[%emt 0:01:16]} e5 {[%emt 0:15:56]} 11. Na3 {[%emt 0:16:42]} Nc6 {[%emt 0:14:03]} 12. Nc4 {[%emt 0:20:15]} e4 {[%emt 0:04:44]} 13. Ne1 {[%emt 0:00:15]} Qg5 {[%emt 0:04:02]} 14. Kh1 {[%emt 0:00:46]} Be6 {[%emt 0:12:33]} 15. Nd6 {[%emt 0:09:07]} Bd5 {[%emt 0:07:00]} 16. Bc4 {[%emt 0:10:05]} Bxc4 {[%emt 0:06:20]} 17. Nxc4 {[%emt 0:00:10]} Ne6 {[%emt 0:05:45]} 18. b4 {[%emt 0:01:35]} Qd5 {[%emt 0:02:20]} 19. d3 {[%emt 0:03:05]} Rad8 {[%emt 0:04:53]} 20. Nd6 {[%emt 0:06:31]} Nxb4 {[%emt 0:01:50]} 21. cxb4 {[%emt 0:00:34]} Bxb2 {[%emt 0:00:21]} 22. Rb1 {[%emt 0:02:18]} Be5 {[%emt 0:01:11]} 23. Nxe4 {[%emt 0:00:55]} f5 {[%emt 0:02:57]} 24. Nd2 {[%emt 0:00:41]} Qxa2 {[%emt 0:01:36]} 25. Nc4 {[%emt 0:01:54]} Bg7 {[%emt 0:00:53]} 26. Nc2 {[%emt 0:01:34]} Rd7 {[%emt 0:02:40]} 27. Qe2 {[%emt 0:06:01]} Nf4 {[%emt 0:01:02]} 28. Rxf4 {[%emt 0:03:23]} Qxb1+ {[%emt 0:00:10]} 29. Rf1 {[%emt 0:00:02]} Qb3 {[%emt 0:00:54]} 30. d4 {[%emt 0:00:48]} Kh8 {[%emt 0:00:45]} 31. Rf3 {[%emt 0:00:23]} Qb1+ {[%emt 0:01:04]} 32. Rf1 {[%emt 0:00:06]} Qb3 {[%emt 0:00:56]} 33. Rf3 {[%emt 0:00:12]} Qa2 {[%emt 0:00:25]} 34. Nd6 {[%emt 0:00:14]} Bf6 {[%emt 0:01:02]} 35. Re3 {[%emt 0:00:57]} Qb1+ {[%emt 0:00:28]} 36. Ne1 {[%emt 0:00:04]} Rg7 {[%emt 0:00:33]} 37. Re8 {[%emt 0:01:26]} Rgg8 {[%emt 0:00:24]} 38. Rxf8 {[%emt 0:00:47]} Rxf8 {[%emt 0:00:02]} 39. g3 {[%emt 0:00:29]} Qxb4 {[%emt 0:00:55]} 40. Nc2 {[%emt 0:00:28]} Qb3 {[%emt 0:00:28]} 41. Nc4 {[%emt 0:00:34]} Rd8 {[%emt 0:00:41]} 42. Kg2 {[%emt 0:00:12]} Qb5 {[%emt 0:00:28]} 43. Kf2 {[%emt 0:00:48]} Qc6 {[%emt 0:00:33]} 44. Nd6 {[%emt 0:00:11]} Qd7 {[%emt 0:00:28]} 45. Qc4 {[%emt 0:00:29]} Kg7 {[%emt 0:00:15]} 46. Ne3 {[%emt 0:00:45]} b6 {[%emt 0:00:32]} 47. Nd5 {[%emt 0:00:27]} Qe6 {[%emt 0:00:28]} 48. Ne3 {[%emt 0:00:39]} Qxc4 {[%emt 0:00:15]} 0-1

[Event "26th Abu Dhabi Master 2019"]
[Site "Abu Dhabi"]
[Date "2019.08.03"]
[Round "3.61"]
[White "Gomes, Mary Ann"]
[Black "Panda Sambit"]
[Result "0-1"]
[ECO "A09"]
[WhiteElo "2303"]
[BlackElo "2126"]
[Annotator "NA"]
[PlyCount "64"]
[EventDate "2019.08.02"]
[EventType "swiss"]
[EventCountry "UAE"]
[SourceTitle "playchess.com"]
[Source "ChessBase"]
[SourceQuality "1"]
[TimeControl "5400+30"]

1. Nf3 {[%emt 0:00:00]} d5 {[%emt 0:00:02]} 2. c4 {[%emt 0:00:00]} d4 {[%emt 0:00:17]} 3. g3 {[%emt 0:00:00]} Nc6 {[%emt 0:00:05]} 4. Bg2 {[%emt 0:00:03]} e5 {[%emt 0:00:04]} 5. d3 {[%emt 0:00:05]} Bb4+ {[%emt 0:00:04]} 6. Bd2 {[%emt 0:00:07]} a5 {[%emt 0:00:04]} 7. O-O {[%emt 0:00:10]} Nf6 {[%emt 0:00:04]} 8. Bg5 {[%emt 0:00:18]} O-O {[%emt 0:03:51]} 9. Nbd2 {[%emt 0:00:10]} h6 {[%emt 0:01:54]} 10. Bxf6 {[%emt 0:00:06]} Qxf6 {[%emt 0:00:05]} 11. a3 {[%emt 0:00:06]} Be7 {[%emt 0:00:04]} 12. e3 {[%emt 0:00:07]} dxe3 {[%emt 0:08:18]} 13. fxe3 {[%emt 0:00:06]} Qg6 {[%emt 0:04:57]} 14. Qe2 {[%emt 0:00:20]} Bg4 {[%emt 0:04:19]} 15. Ne4 {[%emt 0:11:09]} f5 {[%emt 0:15:33]} 16. Nf2 {[%emt 0:00:07]} Bh5 {[%emt 0:00:26]} 17. Qd2 {[%emt 0:00:17]} Bc5 {[%emt 0:10:31]} 18. Nh4 {[%emt 0:01:54]} Qg5 {[%emt 0:01:24]} 19. Bd5+ {[%emt 0:02:01]} Kh8 {[%emt 0:03:13]} 20. Ng2 {[%emt 0:00:07]} a4 {[%emt 0:06:17]} 21. Qc3 {[%emt 0:10:04]} Nd4 {[%emt 0:17:28]} 22. Nf4 {[%emt 0:17:51]} exf4 {[%emt 0:09:08]} 23. exd4 {[%emt 0:00:09]} fxg3 {[%emt 0:02:32]} 24. dxc5 {[%emt 0:00:07]} gxf2+ {[%emt 0:00:40]} 25. Kh1 {[%emt 0:00:08]} Qe3 {[%emt 0:02:42]} 26. d4 {[%emt 0:05:24]} f4 {[%emt 0:00:31]} 27. c6 {[%emt 0:02:38]} bxc6 {[%emt 0:00:51]} 28. Bg2 {[%emt 0:01:44]} Be2 {[%emt 0:03:06]} 29. Rfc1 {[%emt 0:02:33]} Rab8 {[%emt 0:01:48]} 30. Rc2 {[%emt 0:00:49]} Bd3 {[%emt 0:01:17]} 31. Rf1 {[%emt 0:06:07]} Bxf1 {[%emt 0:00:56]} 32. Bxf1 {[%emt 0:00:05]} Qe4+ {[%emt 0:00:04]} 0-1

[Event "26th Abu Dhabi Master 2019"]
[Site "Abu Dhabi"]
[Date "2019.08.03"]
[Round "3.62"]
[White "Tashkhodzhaev, Akram"]
[Black "Srija, Seshadri"]
[Result "1-0"]
[ECO "C68"]
[WhiteElo "2123"]
[BlackElo "2306"]
[Annotator "NA"]
[PlyCount "77"]
[EventDate "2019.08.02"]
[EventType "swiss"]
[EventCountry "UAE"]
[SourceTitle "playchess.com"]
[Source "ChessBase"]
[SourceQuality "1"]
[TimeControl "5400+30"]

1. e4 {[%emt 0:01:06]} e5 {[%emt 0:00:00]} 2. Nf3 {[%emt 0:00:08]} Nc6 {[%emt 0:00:00]} 3. Bb5 {[%emt 0:00:18]} a6 {[%emt 0:00:00]} 4. Bxc6 {[%emt 0:01:01]} dxc6 {[%emt 0:00:00]} 5. O-O {[%emt 0:00:07]} Qf6 {[%emt 0:01:41]} 6. d4 {[%emt 0:02:55]} exd4 {[%emt 0:00:12]} 7. Qxd4 {[%emt 0:00:07]} Qxd4 {[%emt 0:04:16]} 8. Nxd4 {[%emt 0:00:11]} c5 {[%emt 0:01:47]} 9. Ne2 {[%emt 0:03:57]} Bd7 {[%emt 0:02:13]} 10. Bf4 {[%emt 0:00:57]} O-O-O {[%emt 0:00:43]} 11. Nbc3 {[%emt 0:00:09]} Nf6 {[%emt 0:00:19]} 12. f3 {[%emt 0:04:29]} Bc6 {[%emt 0:06:52]} 13. Rad1 {[%emt 0:01:23]} Re8 {[%emt 0:00:42]} 14. Kf2 {[%emt 0:03:00]} h6 {[%emt 0:04:56]} 15. g4 {[%emt 0:02:56]} g5 {[%emt 0:08:38]} 16. Be3 {[%emt 0:15:32]} Nd7 {[%emt 0:00:23]} 17. Rh1 {[%emt 0:02:17]} Ne5 {[%emt 0:10:49]} 18. h4 {[%emt 0:06:03]} f5 {[%emt 0:12:47]} 19. hxg5 {[%emt 0:11:54]} fxe4 {[%emt 0:01:19]} 20. Nxe4 {[%emt 0:02:23]} Nxg4+ {[%emt 0:12:04]} 21. fxg4 {[%emt 0:00:12]} Bxe4 {[%emt 0:01:17]} 22. Rh3 {[%emt 0:03:13]} Bd6 {[%emt 0:01:18]} 23. Rxd6 {[%emt 0:08:27]} cxd6 {[%emt 0:00:19]} 24. gxh6 {[%emt 0:00:00]} Rhf8+ {[%emt 0:04:31]} 25. Nf4 {[%emt 0:01:59]} Bxc2 {[%emt 0:03:44]} 26. g5 {[%emt 0:00:34]} Re7 {[%emt 0:07:15]} 27. Rg3 {[%emt 0:08:57]} Bg6 {[%emt 0:00:40]} 28. Kg2 {[%emt 0:03:15]} Rg8 {[%emt 0:00:20]} 29. Nxg6 {[%emt 0:02:09]} Rxg6 {[%emt 0:00:01]} 30. Kf3 {[%emt 0:00:32]} Rh7 {[%emt 0:04:41]} 31. Rh3 {[%emt 0:02:34]} d5 {[%emt 0:04:47]} 32. Kg4 {[%emt 0:00:41]} d4 {[%emt 0:00:10]} 33. Bf4 {[%emt 0:01:17]} Kd7 {[%emt 0:01:44]} 34. Kf5 {[%emt 0:01:24]} Rg8 {[%emt 0:00:55]} 35. g6 {[%emt 0:00:20]} Re7 {[%emt 0:01:14]} 36. h7 {[%emt 0:02:14]} Rf8+ {[%emt 0:00:15]} 37. Kg5 {[%emt 0:00:48]} Re1 {[%emt 0:00:24]} 38. g7 {[%emt 0:02:40]} Rg1+ {[%emt 0:00:38]} 39. Rg3 {[%emt 0:00:23]} 1-0

[Event "26th Abu Dhabi Master 2019"]
[Site "Abu Dhabi"]
[Date "2019.08.03"]
[Round "3.63"]
[White "Panesar Vedant"]
[Black "Aaryan Varshney"]
[Result "1/2-1/2"]
[ECO "A05"]
[WhiteElo "2092"]
[BlackElo "2284"]
[Annotator "NA"]
[PlyCount "47"]
[EventDate "2019.08.02"]
[EventType "swiss"]
[EventCountry "UAE"]
[SourceTitle "playchess.com"]
[Source "ChessBase"]
[SourceQuality "1"]
[TimeControl "5400+30"]

1. Nf3 Nf6 2. c4 e6 3. g3 d5 4. Bg2 Be7 5. d4 O-O 6. O-O c6 7. Qc2 b6 8. Rd1 Nbd7 9. b3 Bb7 10. Nc3 Rc8 11. e4 c5 12. exd5 exd5 13. Bf4 a6 14. Nxd5 Bxd5 15. cxd5 Nxd5 16. Qd2 cxd4 17. Qxd4 N7f6 18. Be5 Bc5 19. Qd3 Qe7 20. Qxa6 Nb4 21. Qf1 Ne4 22. Bd4 Bxd4 23. Nxd4 Nc3 24. Rd2 1/2-1/2

[Event "26th Abu Dhabi Master 2019"]
[Site "Abu Dhabi"]
[Date "2019.08.03"]
[Round "3.64"]
[White "Nitish Belurkar"]
[Black "Srihari L"]
[Result "1-0"]
[ECO "B90"]
[WhiteElo "2302"]
[BlackElo "2101"]
[Annotator "NA"]
[PlyCount "43"]
[EventDate "2019.08.02"]
[EventType "swiss"]
[EventCountry "UAE"]
[SourceTitle "playchess.com"]
[Source "ChessBase"]
[SourceQuality "1"]
[TimeControl "5400+30"]

1. e4 c5 2. Nf3 d6 3. d4 cxd4 4. Nxd4 Nf6 5. Nc3 a6 6. Be3 e6 7. Be2 Be7 8. O-O O-O 9. f4 Qc7 10. g4 Nc6 11. g5 Nd7 12. f5 Nxd4 13. Qxd4 Re8 14. fxe6 fxe6 15. Bh5 g6 16. Nd5 exd5 17. Qxd5+ Kh8 18. Qf7 Qd8 19. Bxg6 hxg6 20. Qxg6 Bxg5 21. Rf7 Bxe3+ 22. Kh1 1-0

[Event "26th Abu Dhabi Master 2019"]
[Site "Abu Dhabi"]
[Date "2019.08.03"]
[Round "3.65"]
[White "Pujari, Rucha"]
[Black "Raja Rithvik R"]
[Result "1/2-1/2"]
[ECO "D38"]
[WhiteElo "2268"]
[BlackElo "2357"]
[Annotator "NA"]
[PlyCount "77"]
[EventDate "2019.08.02"]
[EventType "swiss"]
[EventCountry "UAE"]
[SourceTitle "playchess.com"]
[Source "ChessBase"]
[SourceQuality "1"]
[TimeControl "5400+30"]

1. d4 {[%emt 0:00:18]} Nf6 {[%emt 0:00:00]} 2. c4 {[%emt 0:00:51]} e6 {[%emt 0:00:16]} 3. Nf3 {[%emt 0:00:06]} d5 {[%emt 0:00:04]} 4. Nc3 {[%emt 0:00:10]} Bb4 {[%emt 0:02:28]} 5. Qa4+ {[%emt 0:00:55]} Nc6 {[%emt 0:00:05]} 6. e3 {[%emt 0:01:20]} O-O {[%emt 0:00:08]} 7. Bd2 {[%emt 0:00:19]} dxc4 {[%emt 0:00:53]} 8. Bxc4 {[%emt 0:00:20]} a6 {[%emt 0:00:46]} 9. O-O {[%emt 0:16:09]} Bd6 {[%emt 0:00:13]} 10. Qc2 {[%emt 0:01:09]} e5 {[%emt 0:01:55]} 11. dxe5 {[%emt 0:01:18]} Nxe5 {[%emt 0:00:05]} 12. Nxe5 {[%emt 0:00:09]} Bxe5 {[%emt 0:00:03]} 13. f4 {[%emt 0:00:35]} Bd6 {[%emt 0:01:19]} 14. Be2 {[%emt 0:07:11]} Re8 {[%emt 0:07:14]} 15. Kh1 {[%emt 0:04:44]} Bg4 {[%emt 0:07:53]} 16. Rae1 {[%emt 0:02:45]} Bc5 {[%emt 0:11:48]} 17. e4 {[%emt 0:17:48]} Bxe2 {[%emt 0:07:37]} 18. Rxe2 {[%emt 0:00:19]} Bb6 {[%emt 0:01:46]} 19. e5 {[%emt 0:03:12]} Nd5 {[%emt 0:02:53]} 20. Ne4 {[%emt 0:03:23]} f6 {[%emt 0:15:27]} 21. exf6 {[%emt 0:09:33]} Nxf6 {[%emt 0:00:06]} 22. Qc4+ {[%emt 0:01:07]} Kh8 {[%emt 0:01:43]} 23. Bc3 {[%emt 0:05:08]} Qd5 {[%emt 0:06:01]} 24. Qxd5 {[%emt 0:01:08]} Nxd5 {[%emt 0:00:02]} 25. Be5 {[%emt 0:00:04]} Ne3 {[%emt 0:04:07]} 26. Rfe1 {[%emt 0:05:10]} Ng4 {[%emt 0:01:11]} 27. h3 {[%emt 0:00:35]} Nxe5 {[%emt 0:00:27]} 28. Nc3 {[%emt 0:00:17]} Bf2 {[%emt 0:06:46]} 29. Rxf2 {[%emt 0:00:50]} Nd3 {[%emt 0:00:01]} 30. Rxe8+ {[%emt 0:00:21]} Rxe8 {[%emt 0:00:03]} 31. Rf1 {[%emt 0:00:40]} b5 {[%emt 0:04:39]} 32. b3 {[%emt 0:07:20]} c5 {[%emt 0:00:01]} 33. Kh2 {[%emt 0:06:03]} h6 {[%emt 0:01:56]} 34. f5 {[%emt 0:03:55]} b4 {[%emt 0:01:17]} 35. Nd5 {[%emt 0:00:19]} Re2 {[%emt 0:01:16]} 36. Rd1 {[%emt 0:00:11]} Nf2 {[%emt 0:02:03]} 37. Rc1 {[%emt 0:00:26]} Ne4 {[%emt 0:10:04]} 38. Rc4 {[%emt 0:00:02]} Kh7 {[%emt 0:02:05]} 39. Nf4 {[%emt 0:00:50]} 1/2-1/2

[Event "26th Abu Dhabi Master 2019"]
[Site "Abu Dhabi"]
[Date "2019.08.03"]
[Round "3.66"]
[White "Ayyad, Husain"]
[Black "Pranav Anand"]
[Result "0-1"]
[ECO "B34"]
[WhiteElo "2231"]
[BlackElo "2347"]
[Annotator "NA"]
[PlyCount "60"]
[EventDate "2019.08.02"]
[EventType "swiss"]
[EventCountry "UAE"]
[SourceTitle "playchess.com"]
[Source "ChessBase"]
[SourceQuality "1"]
[TimeControl "5400+30"]

1. e4 c5 2. Nf3 Nc6 3. d4 cxd4 4. Nxd4 {[%emt 0:11:07]} Nf6 {[%emt 0:00:41]} 5. Nc3 {[%emt 0:00:33]} e5 {[%emt 0:00:05]} 6. Nb3 {[%emt 0:00:16]} Bb4 {[%emt 0:00:20]} 7. Bc4 {[%emt 0:01:33]} O-O {[%emt 0:01:53]} 8. O-O {[%emt 0:00:47]} d6 {[%emt 0:08:58]} 9. Nd5 {[%emt 0:20:45]} Nxd5 {[%emt 0:00:30]} 10. Bxd5 {[%emt 0:02:36]} Be6 {[%emt 0:15:21]} 11. Be3 {[%emt 0:07:56]} Rc8 {[%emt 0:05:23]} 12. a3 {[%emt 0:12:37]} Ba5 {[%emt 0:00:12]} 13. Nxa5 {[%emt 0:11:54]} Nxa5 {[%emt 0:00:11]} 14. b3 {[%emt 0:00:03]} b6 {[%emt 0:10:07]} 15. Rc1 {[%emt 0:12:23]} Rc7 {[%emt 0:04:28]} 16. Qd3 {[%emt 0:06:03]} Re8 {[%emt 0:06:34]} 17. c4 {[%emt 0:00:35]} Qc8 {[%emt 0:03:01]} 18. f4 {[%emt 0:03:07]} Bxd5 {[%emt 0:11:10]} 19. cxd5 {[%emt 0:03:16]} exf4 {[%emt 0:00:11]} 20. Bxf4 {[%emt 0:00:41]} Nb7 {[%emt 0:00:17]} 21. b4 {[%emt 0:00:21]} f6 {[%emt 0:01:36]} 22. Rxc7 {[%emt 0:01:15]} Qxc7 {[%emt 0:00:05]} 23. Rc1 {[%emt 0:00:02]} Qe7 {[%emt 0:00:07]} 24. Bg3 {[%emt 0:01:31]} h5 {[%emt 0:13:14]} 25. Rc4 {[%emt 0:00:26]} Nd8 {[%emt 0:02:35]} 26. Qc2 {[%emt 0:00:09]} Nf7 {[%emt 0:01:01]} 27. Rc8 {[%emt 0:00:37]} Qd7 {[%emt 0:01:53]} 28. Rc7 {[%emt 0:02:11]} Qg4 {[%emt 0:00:13]} 29. Rxa7 {[%emt 0:00:09]} h4 {[%emt 0:01:03]} 30. Bf2 {[%emt 0:01:01]} Ng5 {[%emt 0:01:11]} 0-1

[Event "26th Abu Dhabi Master 2019"]
[Site "Abu Dhabi"]
[Date "2019.08.03"]
[Round "3.67"]
[White "Srihari L R"]
[Black "Krishnater Kushager"]
[Result "0-1"]
[ECO "E71"]
[WhiteElo "2227"]
[BlackElo "2324"]
[Annotator "NA"]
[PlyCount "108"]
[EventDate "2019.08.02"]
[EventType "swiss"]
[EventCountry "UAE"]
[SourceTitle "playchess.com"]
[Source "ChessBase"]
[SourceQuality "1"]
[TimeControl "5400+30"]

1. d4 Nf6 2. c4 g6 3. Nc3 Bg7 4. e4 d6 5. h3 O-O 6. Bg5 c6 7. Qd2 e5 8. d5 Na6 9. Bd3 Nc5 10. Bc2 cxd5 11. cxd5 a5 12. Nge2 Bd7 13. O-O b5 14. Ng3 Qb6 15. Nce2 b4 16. Kh1 a4 17. f4 b3 18. axb3 axb3 19. Rxa8 Rxa8 20. Bb1 Bb5 21. fxe5 dxe5 22. d6 Rd8 23. Rd1 Bxe2 24. Nxe2 Bf8 25. Nc3 Rxd6 26. Qe1 Ncd7 27. Bd3 Nc5 28. Bb1 Qc6 29. Bxf6 Rxd1 30. Qxd1 Qxf6 31. Bd3 Nxd3 32. Qxd3 Bc5 33. Ne2 Qf1+ 34. Kh2 Bg1+ 35. Kh1 Bd4+ 36. Kh2 Bxb2 37. Qd8+ Kg7 38. Ng3 Qf4 39. Qd3 Bd4 40. Qxb3 Bf2 41. Qf3 Bxg3+ 42. Qxg3 g5 43. h4 g4 44. Qxf4 exf4 45. g3 f3 46. Kg1 Kf6 47. Kf2 h5 48. e5+ Kxe5 49. Ke3 f5 50. Kf2 Ke4 51. Ke1 Ke3 52. Kf1 f2 53. Kg2 Ke2 54. Kh2 f4 0-1